[Event "12th National Schools-ch 2024"]
[Site "Gyan Bhawan Patna"]
[Date "2024.02.06"]
[Round "2.10"]
[White "Daksh Goyal"]
[Black "Godhani Maharth"]
[Result "1-0"]
[ECO "A07"]
[WhiteElo "1853"]
[BlackElo "1496"]
[Annotator "NA RC"]
[PlyCount "79"]
[EventDate "2024.02.05"]
[EventCountry "IND"]
[SourceTitle "playchess.com"]
[Source "ChessBase"]
[SourceQuality "1"]
[TimeControl "5400+30"]

1. Nf3 {[%emt 0:00:21]} d5 {[%emt 0:00:25]} 2. g3 {[%emt 0:01:15]} Nf6 {[%emt 0:00:44]} 3. Bg2 {[%emt 0:00:17]} e6 {[%emt 0:01:15]} 4. O-O {[%emt 0:02:10]} Bd6 {[%emt 0:02:09]} 5. c4 {[%emt 0:05:57]} c5 {[%emt 0:03:14]} 6. cxd5 {[%emt 0:09:47]} exd5 {[%emt 0:00:29]} 7. d4 {[%emt 0:01:13]} O-O {[%emt 0:05:26]} 8. Nc3 {[%emt 0:02:41]} h6 {[%emt 0:06:39]} 9. Nb5 {[%emt 0:13:50]} Be7 {[%emt 0:07:29]} 10. dxc5 {[%emt 0:02:03]} Qa5 {[%emt 0:03:27]} 11. Nd6 {[%emt 0:04:39]} Qxc5 {[%emt 0:00:52]} 12. Nxc8 {[%emt 0:00:10]} Qxc8 {[%emt 0:00:25]} 13. b3 {[%emt 0:08:10]} Rd8 {[%emt 0:03:00]} 14. Bb2 {[%emt 0:00:59]} Nc6 {[%emt 0:01:01]} 15. Rc1 {[%emt 0:01:25]} Qd7 {[%emt 0:04:04]} 16. Ne5 {[%emt 0:07:13]} Qe6 {[%emt 0:01:56]} 17. Nd3 {[%emt 0:01:58]} Ne4 {[%emt 0:06:34]} 18. Nf4 {[%emt 0:01:04]} Qf5 {[%emt 0:00:45]} 19. Qc2 {[%emt 0:05:52]} Nb4 {[%emt 0:09:00]} 20. Qb1 {[%emt 0:00:35]} Nd6 {[%emt 0:01:23]} 21. a3 {[%emt 0:14:33]} g5 {[%emt 0:02:22]} 22. Nxd5 {[%emt 0:03:23]} Qxb1 {[%emt 0:02:04]} 23. Nxe7+ {[%emt 0:00:31]} Kf8 {[%emt 0:00:40]} 24. Rxb1 {[%emt 0:00:03]} Kxe7 {[%emt 0:00:27]} 25. axb4 {[%emt 0:00:03]} a5 {[%emt 0:00:17]} 26. bxa5 {[%emt 0:00:22]} Rxa5 {[%emt 0:00:09]} 27. Ra1 {[%emt 0:00:08]} Rb5 {[%emt 0:00:08]} 28. Ba3 {[%emt 0:00:05]} Rxb3 {[%emt 0:00:10]} 29. Rfd1 {[%emt 0:00:03]} b5 {[%emt 0:00:13]} 30. Bxd6+ {[%emt 0:00:08]} Rxd6 {[%emt 0:00:07]} 31. Ra7+ {[%emt 0:00:07]} Ke6 {[%emt 0:00:08]} 32. Bh3+ {[%emt 0:00:08]} Ke5 {[%emt 0:00:12]} 33. f4+ {[%emt 0:00:16]} gxf4 {[%emt 0:00:06]} 34. gxf4+ {[%emt 0:00:07]} Kxf4 {[%emt 0:00:09]} 35. Rxd6 {[%emt 0:00:04]} Rxh3 {[%emt 0:00:08]} 36. Rxf7+ {[%emt 0:00:05]} Ke3 {[%emt 0:00:06]} 37. Rd3+ {[%emt 0:00:04]} Kxe2 {[%emt 0:00:07]} 38. Rxh3 {[%emt 0:00:03]} h5 {[%emt 0:00:07]} 39. Rf2+ {[%emt 0:00:05]} Kd1 {[%emt 0:00:04]} 40. Ra3 {[%emt 0:00:05]} 1-0

[Event "12th National Schools-ch 2024"]
[Site "Gyan Bhawan Patna"]
[Date "2024.02.07"]
[Round "3.2"]
[White "Aarit Kapil"]
[Black "Rudra Nil Roy"]
[Result "1-0"]
[ECO "A41"]
[WhiteElo "1494"]
[BlackElo "1143"]
[Annotator "NA RC"]
[PlyCount "125"]
[EventDate "2024.02.05"]
[EventCountry "IND"]
[SourceTitle "playchess.com"]
[Source "ChessBase"]
[SourceQuality "1"]
[TimeControl "5400+30"]

1. e4 {[%emt 0:00:01]} e5 {[%emt 0:00:06]} 2. Nf3 {[%emt 0:00:05]} Nc6 {[%emt 0:00:04]} 3. d4 {[%emt 0:00:05]} d6 {[%emt 0:00:42]} 4. d5 {[%emt 0:00:12]} Nce7 {[%emt 0:00:08]} 5. c4 {[%emt 0:00:14]} f5 {[%emt 0:00:06]} 6. Nc3 {[%emt 0:00:04]} Nf6 {[%emt 0:00:07]} 7. Bd3 {[%emt 0:00:06]} f4 {[%emt 0:00:20]} 8. g3 {[%emt 0:00:39]} Ng6 {[%emt 0:00:41]} 9. gxf4 {[%emt 0:02:46]} exf4 {[%emt 0:00:10]} 10. Ne2 {[%emt 0:00:12]} Bg4 {[%emt 0:01:18]} 11. Nxf4 {[%emt 0:00:50]} Ne5 {[%emt 0:00:11]} 12. Be2 {[%emt 0:00:05]} Nxe4 {[%emt 0:00:10]} 13. Nxe5 {[%emt 0:00:21]} dxe5 {[%emt 0:00:30]} 14. Bxg4 {[%emt 0:00:44]} exf4 {[%emt 0:00:20]} 15. Qa4+ {[%emt 0:00:04]} c6 {[%emt 0:01:12]} 16. dxc6 {[%emt 0:00:24]} Nc5 {[%emt 0:00:11]} 17. Bd7+ {[%emt 0:07:17]} Nxd7 {[%emt 0:00:47]} 18. cxd7+ {[%emt 0:00:55]} Qxd7 {[%emt 0:00:10]} 19. Qxd7+ {[%emt 0:00:04]} Kxd7 {[%emt 0:00:10]} 20. Bxf4 {[%emt 0:00:03]} Bb4+ {[%emt 0:00:13]} 21. Kf1 {[%emt 0:00:08]} Rhf8 {[%emt 0:00:21]} 22. Be3 {[%emt 0:00:06]} Rae8 {[%emt 0:00:08]} 23. Bxa7 {[%emt 0:02:47]} Kc6 {[%emt 0:00:38]} 24. a3 {[%emt 0:03:03]} Be7 {[%emt 0:01:14]} 25. Bd4 {[%emt 0:01:12]} Rf7 {[%emt 0:00:14]} 26. Re1 {[%emt 0:00:40]} Ref8 {[%emt 0:00:41]} 27. Rg1 {[%emt 0:01:02]} g6 {[%emt 0:01:25]} 28. Re6+ {[%emt 0:01:04]} Kd7 {[%emt 0:01:05]} 29. Rxe7+ {[%emt 0:01:07]} Rxe7 {[%emt 0:00:14]} 30. Bc5 {[%emt 0:00:04]} Rf3 {[%emt 0:00:26]} 31. Bxe7 {[%emt 0:00:52]} Kxe7 {[%emt 0:00:06]} 32. Rg3 {[%emt 0:00:05]} Rf4 {[%emt 0:00:11]} 33. Rb3 {[%emt 1:19:39]} Rh4 {[%emt 0:02:30]} 34. Rxb7+ {[%emt 0:00:00]} Kf6 {[%emt 0:00:07]} 35. Kg2 {[%emt 0:00:00]} h5 {[%emt 0:00:22]} 36. b3 {[%emt 0:00:00]} Rg4+ {[%emt 0:00:06]} 37. Kf1 {[%emt 0:00:00]} Rh4 {[%emt 0:00:07]} 38. c5 {[%emt 0:00:00]} Rxh2 {[%emt 0:00:31]} 39. Kg1 {[%emt 0:00:00]} Rh4 {[%emt 0:00:15]} 40. c6 {[%emt 0:00:00]} Rg4+ {[%emt 0:00:06]} 41. Kh2 {[%emt 0:00:00]} Rf4 {[%emt 0:01:26]} 42. Kg3 {[%emt 0:00:00]} Rf5 {[%emt 0:00:46]} 43. b4 {[%emt 0:00:00]} h4+ {[%emt 0:00:10]} 44. Kxh4 {[%emt 0:00:00]} Rxf2 {[%emt 0:00:37]} 45. b5 {[%emt 0:00:00]} Rf3 {[%emt 0:00:12]} 46. c7 {[%emt 0:00:00]} Rc3 {[%emt 0:00:16]} 47. Kg4 {[%emt 0:00:00]} Ke6 {[%emt 0:00:49]} 48. b6 {[%emt 0:00:00]} Kd7 {[%emt 0:00:09]} 49. Rb8 {[%emt 0:00:00]} Rc4+ {[%emt 0:00:44]} 50. Kg5 {[%emt 0:00:00]} Rc5+ {[%emt 0:00:16]} 51. Kxg6 {[%emt 0:00:00]} Rc6+ {[%emt 0:00:05]} 52. Kf5 {[%emt 0:00:00]} Rc5+ {[%emt 0:00:06]} 53. Ke4 {[%emt 0:00:00]} Rc4+ {[%emt 0:00:05]} 54. Kd5 {[%emt 0:00:00]} Rxc7 {[%emt 0:00:14]} 55. bxc7 {[%emt 0:00:00]} Kxc7 {[%emt 0:00:09]} 56. Rb1 {[%emt 0:00:00]} Kd7 {[%emt 0:00:13]} 57. a4 {[%emt 0:00:00]} Kc7 {[%emt 0:00:14]} 58. a5 {[%emt 0:00:00]} Kd7 {[%emt 0:00:04]} 59. a6 {[%emt 0:00:00]} Kc7 {[%emt 0:00:04]} 60. a7 {[%emt 0:00:00]} Kd7 {[%emt 0:00:12]} 61. Rb7+ {[%emt 0:00:00]} Kc8 {[%emt 0:00:05]} 62. Kc6 {[%emt 0:00:00]} Kd8 {[%emt 0:00:02]} 63. a8=R# {[%emt 0:15:00]} 1-0

[Event "12th National Schools-ch 2024"]
[Site "Gyan Bhawan Patna"]
[Date "2024.02.07"]
[Round "3.3"]
[White "Deepthaashri Ravi Ganesh"]
[Black "Pal Vedika"]
[Result "0-1"]
[ECO "B76"]
[WhiteElo "1124"]
[BlackElo "1539"]
[Annotator "NA RC"]
[PlyCount "68"]
[EventDate "2024.02.05"]
[EventCountry "IND"]
[SourceTitle "playchess.com"]
[Source "ChessBase"]
[SourceQuality "1"]
[TimeControl "5400+30"]

1. e4 {[%emt 0:00:31]} c5 {[%emt 0:00:07]} 2. Nf3 {[%emt 0:00:10]} d6 {[%emt 0:00:09]} 3. d4 {[%emt 0:00:22]} cxd4 {[%emt 0:00:01]} 4. Nxd4 {[%emt 0:00:09]} Nf6 {[%emt 0:00:08]} 5. Nc3 {[%emt 0:00:09]} g6 {[%emt 0:00:02]} 6. Be3 {[%emt 0:00:48]} Bg7 {[%emt 0:00:10]} 7. Qd2 {[%emt 0:00:27]} O-O {[%emt 0:04:59]} 8. f3 {[%emt 0:01:12]} Nc6 {[%emt 0:00:09]} 9. g4 {[%emt 0:03:35]} Bd7 {[%emt 0:07:36]} 10. O-O-O {[%emt 0:04:55]} Rc8 {[%emt 0:04:36]} 11. h4 {[%emt 0:09:23]} h5 {[%emt 0:10:02]} 12. g5 {[%emt 0:05:38]} Nh7 {[%emt 0:04:27]} 13. Be2 {[%emt 0:03:38]} a5 {[%emt 0:09:59]} 14. f4 {[%emt 0:06:28]} a4 {[%emt 0:02:42]} 15. a3 {[%emt 0:03:45]} Na5 {[%emt 0:08:38]} 16. Kb1 {[%emt 0:05:02]} Rb8 {[%emt 0:14:42]} 17. f5 {[%emt 0:15:47]} b5 {[%emt 0:03:56]} 18. Nd5 {[%emt 0:14:31]} Nc4 {[%emt 0:02:16]} 19. Bxc4 {[%emt 0:00:25]} bxc4 {[%emt 0:00:03]} 20. Nb4 {[%emt 0:01:43]} Qa5 {[%emt 0:03:22]} 21. Qe2 {[%emt 0:10:35]} Rfc8 {[%emt 0:09:09]} 22. c3 {[%emt 0:01:25]} gxf5 {[%emt 0:10:10]} 23. Qxh5 {[%emt 0:02:08]} f4 {[%emt 0:01:15]} 24. Bxf4 {[%emt 0:02:19]} e5 {[%emt 0:00:26]} 25. g6 {[%emt 0:01:00]} fxg6 {[%emt 0:01:06]} 26. Qxg6 {[%emt 0:00:58]} exf4 {[%emt 0:03:20]} 27. Rhg1 {[%emt 0:00:40]} Qe5 {[%emt 0:00:00]} 28. h5 {[%emt 0:03:01]} Kh8 {[%emt 0:00:00]} 29. h6 {[%emt 0:00:53]} Bf6 {[%emt 0:00:00]} 30. Nf3 {[%emt 0:00:29]} Qe6 {[%emt 0:00:40]} 31. Nd5 {[%emt 0:02:37]} Rg8 {[%emt 0:01:06]} 32. Qh5 {[%emt 0:00:22]} Qxe4+ {[%emt 0:00:25]} 33. Ka1 {[%emt 0:00:29]} Qe2 {[%emt 0:00:41]} 34. Rge1 {[%emt 0:00:41]} Qxb2# {[%emt 0:00:05]} 0-1

[Event "12th National Schools-ch 2024"]
[Site "Gyan Bhawan Patna"]
[Date "2024.02.07"]
[Round "3.4"]
[White "Andalamala Hemal Varshan"]
[Black "Advik Praveen"]
[Result "1-0"]
[ECO "C42"]
[WhiteElo "1578"]
[BlackElo "1314"]
[Annotator "NA RC"]
[PlyCount "37"]
[EventDate "2024.02.05"]
[EventCountry "IND"]
[SourceTitle "playchess.com"]
[Source "ChessBase"]
[SourceQuality "1"]
[TimeControl "5400+30"]

1. e4 {[%emt 0:00:15]} e5 {[%emt 0:00:39]} 2. Nf3 {[%emt 0:00:10]} Nf6 {[%emt 0:00:25]} 3. Nc3 {[%emt 0:00:07]} Bb4 {[%emt 0:00:09]} 4. Nxe5 {[%emt 0:00:15]} d6 {[%emt 0:02:06]} 5. Nf3 {[%emt 0:00:17]} Bxc3 {[%emt 0:01:57]} 6. dxc3 {[%emt 0:00:38]} Nxe4 {[%emt 0:01:25]} 7. Bd3 {[%emt 0:00:48]} Nf6 {[%emt 0:03:31]} 8. O-O {[%emt 0:04:06]} O-O {[%emt 0:00:36]} 9. h3 {[%emt 0:01:51]} h6 {[%emt 0:01:00]} 10. Bf4 {[%emt 0:02:00]} Nc6 {[%emt 0:07:15]} 11. Qd2 {[%emt 0:04:34]} Be6 {[%emt 0:14:20]} 12. Rfe1 {[%emt 0:04:33]} Re8 {[%emt 0:08:14]} 13. Bxh6 {[%emt 0:10:23]} gxh6 {[%emt 0:15:39]} 14. Qxh6 {[%emt 0:00:17]} Nd5 {[%emt 0:00:44]} 15. Bh7+ {[%emt 0:01:58]} Kh8 {[%emt 0:00:25]} 16. Rxe6 {[%emt 0:00:44]} Qd7 {[%emt 0:03:53]} 17. Bg6+ {[%emt 0:00:36]} Kg8 {[%emt 0:00:12]} 18. Qh7+ {[%emt 0:00:03]} Kf8 {[%emt 0:00:07]} 19. Qh8# {[%emt 0:00:06]} 1-0

[Event "12th National Schools-ch 2024"]
[Site "Gyan Bhawan Patna"]
[Date "2024.02.07"]
[Round "3.5"]
[White "Maitreyi Mondal"]
[Black "Nivedita V C"]
[Result "0-1"]
[ECO "A45"]
[WhiteElo "1399"]
[BlackElo "1609"]
[Annotator "NA RC"]
[PlyCount "96"]
[EventDate "2024.02.05"]
[EventCountry "IND"]
[SourceTitle "playchess.com"]
[Source "ChessBase"]
[SourceQuality "1"]
[TimeControl "5400+30"]

1. d4 {[%emt 0:00:36]} Nf6 {[%emt 0:00:05]} 2. Bg5 {[%emt 0:00:15]} d5 {[%emt 0:00:32]} 3. e3 {[%emt 0:00:10]} c5 {[%emt 0:02:06]} 4. c3 {[%emt 0:00:22]} e6 {[%emt 0:00:45]} 5. Bd3 {[%emt 0:00:40]} Be7 {[%emt 0:00:22]} 6. Nd2 {[%emt 0:01:15]} O-O {[%emt 0:00:57]} 7. f4 {[%emt 0:02:59]} Nc6 {[%emt 0:04:04]} 8. Ne2 {[%emt 0:02:49]} Ng4 {[%emt 0:04:08]} 9. Bxe7 {[%emt 0:00:50]} Qxe7 {[%emt 0:00:09]} 10. Nf1 {[%emt 0:00:48]} cxd4 {[%emt 0:04:02]} 11. exd4 {[%emt 0:02:03]} f5 {[%emt 0:17:23]} 12. Neg3 {[%emt 0:07:12]} Bd7 {[%emt 0:10:22]} 13. Nd2 {[%emt 0:06:59]} g5 {[%emt 0:06:08]} 14. h3 {[%emt 0:12:10]} Ne3 {[%emt 0:03:04]} 15. Qe2 {[%emt 0:00:23]} gxf4 {[%emt 0:00:10]} 16. Ngf1 {[%emt 0:00:08]} Qh4+ {[%emt 0:00:28]} 17. Qf2 {[%emt 0:00:53]} Nxg2+ {[%emt 0:00:22]} 18. Ke2 {[%emt 0:04:05]} Qxf2+ {[%emt 0:01:23]} 19. Kxf2 {[%emt 0:00:07]} Nh4 {[%emt 0:00:13]} 20. Bb5 {[%emt 0:00:33]} a6 {[%emt 0:00:45]} 21. Bxc6 {[%emt 0:00:34]} Bxc6 {[%emt 0:00:48]} 22. Nh2 {[%emt 0:00:38]} Kf7 {[%emt 0:06:20]} 23. Nhf3 {[%emt 0:00:30]} Nxf3 {[%emt 0:00:50]} 24. Nxf3 {[%emt 0:00:16]} Rg8 {[%emt 0:01:00]} 25. Ne5+ {[%emt 0:02:49]} Kf6 {[%emt 0:00:18]} 26. Rhg1 {[%emt 0:00:14]} h5 {[%emt 0:05:01]} 27. h4 {[%emt 0:03:02]} Rg4 {[%emt 0:15:17]} 28. Nxg4+ {[%emt 0:01:26]} hxg4 {[%emt 0:00:09]} 29. Rae1 {[%emt 0:00:08]} Bb5 {[%emt 0:00:21]} 30. Rd1 {[%emt 0:00:53]} g3+ {[%emt 0:01:38]} 31. Kf3 {[%emt 0:00:22]} Rg8 {[%emt 0:01:06]} 32. Rd2 {[%emt 0:06:37]} Rg4 {[%emt 0:16:14]} 33. Rh1 {[%emt 0:01:05]} Kg6 {[%emt 0:00:00]} 34. h5+ {[%emt 0:00:27]} Kh6 {[%emt 0:00:00]} 35. b3 {[%emt 0:00:27]} Be8 {[%emt 0:00:00]} 36. Rdd1 {[%emt 0:02:25]} Bxh5 {[%emt 0:00:00]} 37. Rde1 {[%emt 0:00:28]} Rg6+ {[%emt 0:00:00]} 38. Kxf4 {[%emt 0:00:55]} Rg4+ {[%emt 0:00:00]} 39. Kf3 {[%emt 0:00:37]} f4 {[%emt 0:00:00]} 40. Kg2 {[%emt 0:01:10]} Rg6 {[%emt 0:00:00]} 41. Re5 {[%emt 0:01:52]} f3+ {[%emt 0:00:00]} 42. Kg1 {[%emt 0:00:10]} Rg5 {[%emt 0:00:00]} 43. Rxe6+ {[%emt 0:00:48]} Kg7 {[%emt 0:00:00]} 44. Re5 {[%emt 0:02:04]} Rxe5 {[%emt 0:00:00]} 45. dxe5 {[%emt 0:00:06]} Bg6 {[%emt 0:00:08]} 46. a3 {[%emt 0:02:43]} Be4 {[%emt 0:00:27]} 47. Rh3 {[%emt 0:00:47]} f2+ {[%emt 0:00:08]} 48. Kf1 {[%emt 0:00:05]} Bd3+ {[%emt 0:00:05]} 0-1

[Event "12th National Schools-ch 2024"]
[Site "Gyan Bhawan Patna"]
[Date "2024.02.07"]
[Round "3.6"]
[White "Darsh Ilwadi"]
[Black "Nimay Agrawal"]
[Result "0-1"]
[ECO "B82"]
[WhiteElo "1373"]
[BlackElo "2067"]
[Annotator "TA"]
[PlyCount "108"]
[EventDate "2024.02.05"]
[EventCountry "IND"]
[SourceTitle "playchess.com"]
[Source "ChessBase"]
[SourceQuality "1"]
[TimeControl "5400+30"]

{[%evp 18,107,2,3,32,-14,-11,-2,77,42,162,143,193,104,145,66,57,74,86,17,55,46,93,0,0,-41,-39,-44,-38,-62,-64,-79,-78,-68,-56,-123,-113,-300,-264,-729,-729,-781,-795,-783,-799,-827,-828,-999,-997,-1089,-1135,-1135,-1120,-1233,-1225,-1227,-1228,-1306,-1284,-1516,-1516,-1631,-1592,-12809,-11762,-9979,-8689,-29985,-29986,-29986,-29987,-29987,-29988,-29988,-29989,-29989,-29990,-29992,-29993,-29993,-29994,-29994,-29995,-29995,-29996,-29996,-29997,-29998,-29998,-29998,-29999,-29999]} 1. e4 {[%emt 0:00:03]} c5 {[%emt 0:00:07]} 2. Nf3 {[%emt 0:00:07]} e6 {[%emt 0:00:12]} 3. d4 {[%emt 0:00:07]} cxd4 {[%emt 0:00:09]} 4. Nxd4 {[%emt 0:00:30]} a6 {[%emt 0:00:30]} 5. f4 {[%emt 0:00:30]} d6 {[%emt 0:00:30]} 6. Bd3 {[%emt 0:00:30]} Nf6 {[%emt 0:00:30]} 7. Nc3 {[%emt 0:00:30]} Qc7 {[%emt 0:00:30]} 8. Nf3 {[%emt 0:00:30]} Nc6 {[%emt 0:00:30]} 9. O-O {[%emt 0:00:30]} Be7 {[%emt 0:00:30]} 10. Kh1 {[%emt 0:04:28]} b5 {[%emt 0:21:32]} 11. a3 {[%emt 1:28:15]} (11. e5 $14 {is more appropriate.} dxe5 12. fxe5) 11... O-O $11 {[%emt 0:01:32]} 12. Qe1 {[%emt 0:00:00]} e5 {[%emt 0:01:30]} (12... b4 $11 13. axb4 Nxb4) 13. Bd2 {[%emt 0:00:00]} Be6 {[%emt 0:09:36]} (13... exf4 $14 14. Bxf4 (14. Nd5 Nxd5 15. exd5 Ne5 $11) 14... Ne5) 14. f5 $18 {[%emt 0:00:00]} Bc8 {[%emt 0:07:39]} (14... Bc4 $16 {was necessary.}) 15. Qg3 {[%emt 0:00:00]} (15. g4 $1 $18) 15... Kh8 {[%emt 0:02:56]} 16. Ng5 {[%emt 0:00:00]} ({Don't take} 16. Nd5 Qd8 $16) (16. Qh3 $16) 16... Nd4 {[%emt 0:07:49]} 17. Qh3 {[%emt 0:00:00]} Bb7 {[%emt 0:02:57] Inhibits Nd5.} 18. Be3 {[%emt 0:00:00]} (18. Nd5 $1 $16 {[%cal Rd5c7]} Bxd5 19. exd5) 18... Kg8 {[%emt 0:02:17]} 19. Rae1 {[%emt 0:00:00][%cal Oc3d5]} Qc8 {[%emt 0:06:00] [#]} (19... Rfe8 $14) 20. Bxd4 {[%emt 0:00:00]} ({Better is} 20. Nd5 $1 $16 {[%cal Rd5f6] White wants to mate with Nxf6+.} Bxd5 21. exd5) 20... exd4 $11 {[%emt 0:00:16]} 21. Ne2 {[%emt 0:00:00]} h6 {[%emt 0:01:17]} 22. Nf3 {[%emt 0:00:00]} Bxe4 {[%emt 0:03:53]} 23. Bxe4 {[%emt 0:00:00]} Nxe4 {[%emt 0:00:14]} 24. Nexd4 {[%emt 0:00:00]} d5 {[%emt 0:00:50]} 25. c3 {[%emt 0:00:00]} Bf6 {[%emt 0:01:00] Inhibits Ne5.} 26. Rd1 {[%emt 0:00:00]} (26. g4 $15) 26... Qc4 $17 {[%emt 0:01:19] Black is more active.} 27. Qg4 $2 {[%emt 0:00:00] [#] This move loses the game for White.} (27. g4 $17) 27... Qa2 $1 $19 {[%emt 0:02:21]} 28. Rb1 {[%emt 0:00:00] [#]} (28. Nd2) 28... Qxb1 $3 {[%emt 0:00:39][%mdl 512]} 29. Rxb1 {[%emt 0:00:00]} (29. Qxg7+ Kxg7) 29... Nf2+ {[%emt 0:00:54]} 30. Kg1 {[%emt 0:00:00]} Nxg4 {[%emt 0:00:11]} 31. Re1 {[%emt 0:00:00]} Rfe8 {[%emt 0:00:13]} 32. Rxe8+ {[%emt 0:00:00]} Rxe8 {[%emt 0:00:09]} 33. h3 {[%emt 0:00:00]} Bxd4+ {[%emt 0:00:31]} 34. cxd4 {[%emt 0:00:00]} Ne3 {[%emt 0:00:08]} 35. Kf2 {[%emt 0:00:00]} Nxf5 {[%emt 0:00:07]} 36. g4 {[%emt 0:00:00]} Nd6 {[%emt 0:00:07]} 37. b3 {[%emt 0:00:00]} Rc8 {[%emt 0:00:14] White must now prevent ...Rc2+.} 38. Ne5 {[%emt 0:00:00]} Rc3 {[%emt 0:00:11][%csl LRb3,LRh3]} 39. a4 {[%emt 0:00:00]} Rxb3 {[%emt 0:00:10]} 40. axb5 {[%emt 0:00:00]} Nxb5 {[%emt 0:00:14]} 41. Nc6 {[%emt 0:00:00] Against a5} Rxh3 {[%emt 0:00:18] aiming for ...Ra3.} 42. Nb4 {[%emt 0:00:00]} a5 {[%emt 0:00:08] Black mates.} 43. Nxd5 {[%emt 0:00:00]} a4 {[%emt 0:00:09]} 44. Ne7+ {[%emt 0:00:00]} Kf8 {[%emt 0:00:04]} 45. Nc6 {[%emt 0:00:00]} a3 {[%emt 0:00:07]} 46. Nb4 {[%emt 0:00:00]} Rb3 {[%emt 0:00:08]} 47. d5 {[%emt 0:00:00]} Rxb4 {[%emt 0:00:06]} 48. d6 {[%emt 0:00:00]} Nxd6 {[%emt 0:00:08]} 49. g5 {[%emt 0:00:00]} hxg5 {[%emt 0:00:10]} 50. Kf3 {[%emt 0:00:00]} a2 {[%emt 0:00:07]} 51. Ke3 {[%emt 0:00:00]} a1=Q {[%emt 0:00:09]} 52. Kd3 {[%emt 0:00:00]} Rb3+ {[%emt 0:01:04]} 53. Kc2 {[%emt 0:00:00]} Qa2+ {[%emt 0:00:06]} 54. Kd1 {[%emt 0:00:00]} Rb1# {[%emt 0:00:04] Weighted Error Value: White=0.72/Black=0.24 (precise) .  Loses game:     	White=1     	---        Mistake:       	White=7     	Black=4      Inaccurate:     	White=2     	Black=2      OK:         	White=3     	Black=4      Best:        	White=1     	Black=2      Strong:       	---       	Black=1} 0-1

[Event "12th National Schools-ch 2024"]
[Site "Gyan Bhawan Patna"]
[Date "2024.02.07"]
[Round "3.7"]
[White "Aadya Gupta"]
[Black "Durga Karthika Lellapalli"]
[Result "1-0"]
[ECO "E00"]
[WhiteElo "1544"]
[BlackElo "1382"]
[Annotator "NA RC"]
[PlyCount "73"]
[EventDate "2024.02.05"]
[EventCountry "IND"]
[SourceTitle "playchess.com"]
[Source "ChessBase"]
[SourceQuality "1"]
[TimeControl "5400+30"]

1. d4 {[%emt 0:00:02]} Nf6 {[%emt 0:00:11]} 2. c4 {[%emt 0:00:12]} e6 {[%emt 0:00:08]} 3. a3 {[%emt 0:00:22]} c5 {[%emt 0:00:12]} 4. d5 {[%emt 0:00:30]} d6 {[%emt 0:00:14]} 5. Nc3 {[%emt 0:00:33]} e5 {[%emt 0:00:11]} 6. e4 {[%emt 0:01:01]} g6 {[%emt 0:00:39]} 7. g3 {[%emt 0:02:14]} Bg7 {[%emt 0:03:16]} 8. Bg2 {[%emt 0:00:15]} O-O {[%emt 0:01:53]} 9. Nge2 {[%emt 0:03:00]} Ne8 {[%emt 0:07:52]} 10. O-O {[%emt 0:01:47]} f5 {[%emt 0:01:58]} 11. f4 {[%emt 0:03:05]} Nd7 {[%emt 0:06:44]} 12. Kh1 {[%emt 0:08:18]} Kh8 {[%emt 0:01:43]} 13. Qc2 {[%emt 0:08:54]} Nb6 {[%emt 0:10:36]} 14. fxe5 {[%emt 0:08:29]} Bxe5 {[%emt 0:11:05]} 15. Bh6 {[%emt 0:01:45]} Ng7 {[%emt 0:03:57]} 16. Qd3 {[%emt 0:04:57]} Re8 {[%emt 0:04:54]} 17. Bf4 {[%emt 0:02:53]} fxe4 {[%emt 0:06:03]} 18. Bxe4 {[%emt 0:03:11]} Bf5 {[%emt 0:00:47]} 19. Rae1 {[%emt 0:07:42]} Qd7 {[%emt 0:06:56]} 20. Bxf5 {[%emt 0:06:23]} Nxf5 {[%emt 0:00:44]} 21. Bxe5+ {[%emt 0:07:05]} Rxe5 {[%emt 0:11:12]} 22. Nf4 {[%emt 0:01:48]} Rae8 {[%emt 0:01:27]} 23. Ne6 {[%emt 0:09:46]} Rxe1 {[%emt 0:01:16]} 24. Rxe1 {[%emt 0:00:02]} Nd4 {[%emt 0:00:51]} 25. Qf1 {[%emt 0:01:29]} Qe7 {[%emt 0:02:45]} 26. Ne4 {[%emt 0:05:33]} Nxe6 {[%emt 0:02:35]} 27. Nf6 {[%emt 0:00:42]} Rf8 {[%emt 0:01:41]} 28. Rxe6 {[%emt 0:00:18]} Qd8 {[%emt 0:02:00]} 29. Qe2 {[%emt 0:03:47]} Nc8 {[%emt 0:05:14]} 30. Qe3 {[%emt 0:01:29]} Qc7 {[%emt 0:02:43]} 31. g4 {[%emt 0:03:46]} Qg7 {[%emt 0:03:18]} 32. g5 {[%emt 0:00:16]} Rf7 {[%emt 0:00:41]} 33. Re8+ {[%emt 0:00:29]} Rf8 {[%emt 0:00:10]} 34. Qe6 {[%emt 0:00:39]} h6 {[%emt 0:00:43]} 35. gxh6 {[%emt 0:00:49]} Qxh6 {[%emt 0:00:50]} 36. Qg8+ {[%emt 0:00:20]} Rxg8 {[%emt 0:00:06]} 37. Rxg8# {[%emt 0:00:03]} 1-0